[Event "Frauenbundesliga 2021-22"]
[Site "Germany"]
[Date "2022.05.26"]
[Round "3.29"]
[White "Brandt, Carina"]
[Black "Gvanceladze, Anna"]
[Result "0-1"]
[ECO "B15"]
[WhiteElo "2061"]
[BlackElo "2203"]
[Annotator "TA"]
[PlyCount "76"]
[EventDate "2021.11.26"]
[EventType "team-tourn"]
[EventCountry "GER"]
[SourceTitle "playchess.com"]
[Source "ChessBase"]
[SourceQuality "1"]
[WhiteTeam "Harksheide"]
[BlackTeam "Bad Koenigshofen"]
[TimeControl "40/5400+30:1800+30"]

{[%evp 10,76,31,23,18,17,17,10,17,8,53,0,-8,-7,8,-35,-28,-26,-42,-192,-190,-179,-174,-168,-111,-143,-146,-146,-156,-164,-172,-191,-177,-257,-253,-242,-182,-254,-177,-300,-299,-293,-221,-347,-339,-435,-435,-433,-429,-421,-401,-557,-472,-452,-440,-619,-633,-1062,-1040,-2528,-29958,-5127,-12834,-5971,-5724,-29982,-29983,-29982,-29983]} 1. e4 {[%emt 0:00:03]} c6 {[%emt 0:00:08]} 2. d4 {[%emt 0:00:17]} d5 {[%emt 0:00:06]} 3. Nd2 {[%emt 0:00:06]} dxe4 {[%emt 0:00:06]} 4. Nxe4 {[%emt 0:00:05]} Nf6 {[%emt 0:00:04]} 5. Nxf6+ {[%emt 0:03:39]} exf6 {[%emt 0:00:05]} 6. Be3 {[%emt 0:00:40]} Bd6 {[%emt 0:00:47] B15: Caro-Kann: 3 Nc3: 3...g6 and 3...dxe4 4 Nxe4 Nf6 5 Nxf6+ exf6.} 7. c3 {[%emt 0:01:10]} Nd7 {[%emt 0:07:52][%cal Bb8d7,Bd7b6,Bb6d5][%mdl 32]} 8. Qc2 {[%emt 0:02:04]} Nb6 {[%emt 0:05:21] The position is equal.} 9. Bd3 {[%emt 0:04:40] [#]} h5 $146 {[%emt 0:00:11]} (9... Nd5) ({Predecessor:} 9... Qc7 10. Ne2 Be6 11. Bd2 c5 12. O-O-O cxd4 13. Nxd4 Bxa2 14. Rhe1+ Kd8 15. Nb5 Qd7 16. Nxd6 Qxd6 {1-0 (34) Mullink,J (1610)-Heij,J (887) Haarlem 2012}) 10. O-O-O {[%emt 0:03:43]} (10. c4) ({White should try} 10. c4 $14) 10... Nd5 $11 {[%emt 0:01:22]} 11. Bd2 {[%emt 0:06:56]} Be6 {[%emt 0:02:42][%cal Bc8e6,Be6a2,Ba2d5][%mdl 32]} 12. g3 {[%emt 0:04:07]} b5 {[%emt 0:09:58]} 13. f4 {[%emt 0:03:01]} Ne7 {[%emt 0:08:46]} 14. Nf3 {[%emt 0:19:40]} (14. Kb1 $15) 14... Bxa2 $19 {[%emt 0:03:37]} 15. Rde1 {[%emt 0:05:44]} Bd5 {[%emt 0:02:39]} 16. Rhf1 {[%emt 0:00:34]} Qa5 {[%emt 0:07:16]} ({Black should play} 16... a5 $19 {And now ...a4 would win.} 17. Kb1 a4) 17. Nh4 {[%emt 0:06:07]} Qa1+ {[%emt 0:01:59]} 18. Qb1 {[%emt 0:00:05]} Qxb1+ {[%emt 0:00:03]} 19. Bxb1 {[%emt 0:00:10]} g6 {[%emt 0:03:41][%cal Bg7g6,Bg6g5][%mdl 32] Prevents Nf5.} 20. Rf2 {[%emt 0:02:49]} Kd7 {[%emt 0:03:50]} 21. f5 {[%emt 0:01:03]} (21. Be4 {was worth a try.}) 21... g5 {[%emt 0:01:35]} 22. Ng2 {[%emt 0:00:18]} Bb3 {[%emt 0:04:45]} 23. Rfe2 {[%emt 0:05:19]} (23. Bc2 $142 Bxc2 24. Kxc2) 23... Nd5 {[%emt 0:02:26]} 24. Bd3 {[%emt 0:02:14]} (24. Bc2 $142 Bxc2 25. Kxc2) 24... a5 {[%emt 0:01:29][%cal Ba7a5,Ba5a4][%mdl 32]} 25. Ne3 {[%emt 0:00:56]} Nxe3 {[%emt 0:01:40]} 26. Rxe3 {[%emt 0:01:29]} (26. Bxe3 $142 a4 27. Bf2) 26... h4 {[%emt 0:01:39]} 27. Bf1 {[%emt 0:04:49]} hxg3 {[%emt 0:01:23]} 28. hxg3 {[%emt 0:00:07]} a4 {[%emt 0:03:11]} 29. Kb1 {[%emt 0:01:34]} Rh2 {[%emt 0:01:41]} 30. R1e2 {[%emt 0:02:28]} Rxe2 {[%emt 0:04:36]} 31. Bxe2 {[%emt 0:00:06]} Rh8 {[%emt 0:00:03] [#] Strongly threatening ...Rh1+.} 32. Bc1 {[%emt 0:01:11]} (32. Bf3 $142 Bxg3 33. Bc1) 32... Rh1 {[%emt 0:02:21]} 33. c4 {[%emt 0:02:45]} bxc4 {[%emt 0:01:16] White must now prevent ...Bb4.} 34. d5 {[%emt 0:02:04]} cxd5 {[%emt 0:02:11]} 35. Bf3 {[%emt 0:00:08]} Rg1 {[%emt 0:00:11]} 36. Bxd5 {[%emt 0:00:09]} Bxg3 {[%emt 0:00:58] [#] ( -> ...Bf4)} 37. Bxf7 {[%emt 0:01:02]} Bf4 {[%emt 0:00:24]} 38. Rc3 {[%emt 0:00:07]} Bd2 {[%emt 0:00:37] Weighted Error Value: White=0.89/Black=0.11 (very precise)} 0-1

[Event "Frauenbundesliga 2021-22"]
[Site "Germany"]
[Date "2022.05.26"]
[Round "3.30"]
[White "Gromova, Iulia"]
[Black "Koehler, Inken"]
[Result "0-1"]
[ECO "D61"]
[WhiteElo "2236"]
[BlackElo "2002"]
[Annotator "TA"]
[PlyCount "170"]
[EventDate "2021.11.26"]
[EventType "team-tourn"]
[EventCountry "GER"]
[SourceTitle "playchess.com"]
[Source "ChessBase"]
[SourceQuality "1"]
[WhiteTeam "Bad Koenigshofen"]
[BlackTeam "Harksheide"]
[TimeControl "40/5400+30:1800+30"]

{[%evp 17,170,30,24,15,10,10,11,9,0,-12,-22,-50,0,-9,0,-25,-12,-23,-14,-14,-10,-35,-42,-31,-6,-14,-14,-11,-21,-118,-67,-116,-32,-44,-49,-47,-35,-39,-37,-97,-87,-141,-147,-139,-108,-114,-111,-115,-102,-109,-88,-126,-100,-108,-98,-102,-103,-106,-87,-89,-83,-95,-105,-110,-72,-82,-75,-95,-112,-153,-151,-214,-227,-247,-239,-306,-289,-285,-276,-284,-279,-583,-578,-565,-537,-570,-549,-554,-575,-546,-532,-653,-622,-29938,-29944,-29952,-3949,-29956,-29949,-29948,-29945,-29957,-29954,-29952,-29937,-29957,-6406,-29976,-10162,-5903,-1685,-1216,-1133,-29965,-7124,-29973,-29974,-29974,-29975,-29975,-29976,-29977,-29977,-29977,-29976,-29978,-29978,-29978,-29977,-29977,-29978,-29976,-29972,-29973,-29974,-29973,-29974,-29978,-29979,-29977,-29978,-29982,-29983,-29983,-29984,-29984,-29985,-29985,-29986,-29986,-29987,-29987,-29988,-29988,-29989]} 1. d4 {[%emt 0:00:03]} d5 {[%emt 0:00:08]} 2. c4 {[%emt 0:00:07]} e6 {[%emt 0:00:16]} 3. Nc3 {[%emt 0:00:07]} Nf6 {[%emt 0:00:08]} 4. Bg5 {[%emt 0:00:07]} Be7 {[%emt 0:00:21]} 5. e3 {[%emt 0:00:40]} h6 {[%emt 0:03:14]} 6. Bh4 {[%emt 0:00:26]} O-O {[%emt 0:08:07]} 7. Nf3 {[%emt 0:01:03]} Nbd7 {[%emt 0:01:38]} 8. Qc2 {[%emt 0:02:37]} c5 {[%emt 0:07:07]} 9. Rd1 {[%emt 0:04:49]} Qa5 {[%emt 0:06:13]} 10. cxd5 {[%emt 0:04:33] D61: Queen's Gambit Declined: Classical: 7 Qc2.} Nxd5 {[%emt 0:05:15]} 11. Bxe7 {[%emt 0:02:13]} Nxe7 {[%emt 0:00:10]} 12. Bd3 {[%emt 0:03:41] The position is equal.} cxd4 {[%emt 0:05:16]} 13. exd4 {[%emt 0:02:23]} Nf6 {[%emt 0:05:58][%cal Ob7b5]} 14. O-O {[%emt 0:04:35]} Nc6 {[%emt 0:20:00]} (14... b6 $15) 15. a3 {[%emt 0:01:11]} Rd8 {[%emt 0:03:21] [#]} 16. Qe2 $146 {[%emt 0:10:21]} ({Predecessor:} 16. Rfe1 Bd7 17. Qe2 Be8 18. Ne4 Nd5 19. Bb1 Rac8 20. Qd3 g6 21. g3 Nce7 22. Ne5 {0-1 (50) Gibaud,A-Ichim,T Munich 1936}) 16... Qb6 {[%emt 0:08:02]} 17. Na4 {[%emt 0:03:43]} Qc7 {[%emt 0:00:22]} 18. Rc1 {[%emt 0:04:04]} Qf4 {[%emt 0:04:19]} 19. Qe3 {[%emt 0:15:26]} Nd5 {[%emt 0:01:13]} 20. Qe4 {[%emt 0:22:44]} f5 {[%emt 0:02:08]} 21. Qe2 {[%emt 0:01:48]} Nxd4 {[%emt 0:00:56]} 22. Nxd4 {[%emt 0:00:35]} Qxd4 {[%emt 0:00:08]} 23. Bc2 {[%emt 0:00:39]} (23. Bc4 $11 {remains equal.}) 23... Bd7 {[%emt 0:06:15]} (23... Nf4 $17 24. Qf3 Bd7) 24. Rfd1 {[%emt 0:01:25] [#]} (24. g3 $1 $15) 24... Qf6 {[%emt 0:04:01] Black is more active.} (24... Nf4 $1 $17 {[%cal Rf4e2]} 25. Qf3 Qe5) 25. Nc5 $15 {[%emt 0:01:11]} b6 {[%emt 0:00:51]} 26. Nxd7 {[%emt 0:02:02]} Rxd7 {[%emt 0:00:01]} 27. Ba4 {[%emt 0:00:37]} Rd6 {[%emt 0:01:30]} 28. h3 {[%emt 0:02:18]} (28. Bb3 $15) 28... Rad8 $36 {[%emt 0:01:04][%mdl 2048] Black is really pushing.} 29. Bb3 {[%emt 0:01:35]} (29. g3 $142) 29... Nf4 $17 {[%emt 0:02:47]} 30. Qe3 {[%emt 0:03:11] Hoping for Rxd6.} Rxd1+ {[%emt 0:01:27]} 31. Rxd1 {[%emt 0:00:10]} Rxd1+ {[%emt 0:01:13]} 32. Bxd1 {[%emt 0:00:02][%mdl 4096] Endgame KQB-KQN} Nd5 {[%emt 0:01:13]} 33. Qe2 {[%emt 0:01:00]} Kh7 {[%emt 0:00:38]} 34. Qc2 {[%emt 0:01:51]} Qe5 {[%emt 0:00:34]} 35. Bf3 {[%emt 0:00:42]} Nf4 {[%emt 0:01:00]} 36. Qd2 {[%emt 0:01:19]} Ng6 {[%emt 0:00:40]} 37. g3 {[%emt 0:00:38]} Qc5 {[%emt 0:00:29]} 38. b4 {[%emt 0:00:48]} Qc7 {[%emt 0:00:39]} 39. Kh2 {[%emt 0:01:06]} Ne5 {[%emt 0:00:35]} 40. Bg2 {[%emt 0:00:06]} Nc4 {[%emt 0:00:34]} 41. Qc3 {[%emt 0:31:43]} b5 {[%emt 0:01:20]} 42. a4 {[%emt 0:00:00]} Qe5 {[%emt 0:05:46]} ({Of course not} 42... bxa4 $6 43. Bf1 $11) 43. Qxe5 {[%emt 0:00:00]} Nxe5 {[%emt 0:00:05][%cal Bc4e5,Be5d3,Bd3b4,Bb4c2][%mdl 32]} 44. axb5 {[%emt 0:00:00] KB-KN} (44. a5 $17 {was necessary.}) 44... Nd3 $19 {[%emt 0:00:16][%csl LRb4,LRf2]} 45. Bb7 {[%emt 0:00:00]} Kg6 {[%emt 0:05:48]} ({Weaker is} 45... Nxb4 46. Bc8 $17) 46. f4 {[%emt 0:00:00]} Nxb4 {[%emt 0:00:42]} 47. Kg2 {[%emt 0:00:00]} Nc2 {[%emt 0:00:44]} 48. Ba6 {[%emt 0:00:00]} Kf6 {[%emt 0:03:08]} 49. g4 $2 {[%emt 0:00:00]} (49. h4) 49... fxg4 {[%emt 0:10:22]} 50. hxg4 {[%emt 0:00:00]} Ke7 {[%emt 0:00:14]} 51. Kf3 {[%emt 0:00:00]} Kd6 {[%emt 0:04:23]} 52. Ke4 {[%emt 0:00:00]} Nb4 {[%emt 0:00:26]} 53. Bc8 {[%emt 0:01:29]} Nd5 {[%emt 0:00:12]} 54. f5 {[%emt 0:04:19]} exf5+ {[%emt 0:00:18]} 55. Bxf5 {[%emt 0:00:14]} Nc3+ {[%emt 0:00:11]} 56. Kf4 {[%emt 0:00:56]} Nxb5 {[%emt 0:00:24]} (56... g5+ $142 57. Ke3 Nxb5 58. Bd3 Kc5 59. Be4 Nd6 60. Bd3 a5 61. Bc2 Kd5 62. Bb3+ Ke5 63. Bc2 Nb5 64. Ba4 Nc3 65. Bc6 Nd5+ 66. Kf2 Nf6 67. Kg3 Kd4 68. Kf3 Kc5 69. Ba4 Kb4 70. Bd1 a4 71. Bc2 a3 72. Bb1 Kb3 73. Bg6 a2 74. Bf7+ Ka3 75. Bxa2 Kxa2 76. Kg3 Kb3 77. Kh3 Kc4 78. Kg3 Kd4 79. Kf3 Kd3 80. Kf2 Nxg4+ 81. Kg3 h5 82. Kf3 Ne5+ 83. Kf2 h4 84. Kf1 Ke3 85. Kg1 Nd3 86. Kg2 g4 87. Kg1 h3 88. Kh1 g3 89. Kg1 Kf4 90. Kf1 Kf3 91. Kg1 h2+ 92. Kh1 Nf2#) 57. Bd3 {[%emt 0:00:27]} Nd4 {[%emt 0:00:36]} 58. Ke4 {[%emt 0:00:42]} Nc6 {[%emt 0:01:25]} 59. Ba6 {[%emt 0:00:33]} Nb4 {[%emt 0:01:33]} 60. Bc4 {[%emt 0:00:09]} a5 {[%emt 0:00:40]} 61. Bb5 {[%emt 0:00:34]} Nd5 {[%emt 0:00:22]} (61... g5 $142 62. Ba4 Nd5 63. Kd4 Nb6 64. Be8 Nd7 65. Kc3 Nf6 66. Ba4 Nxg4 67. Kd3 h5 68. Ke4 Nf6+ 69. Kd3 h4 70. Ke2 Nd5 71. Ke1 Nc3 72. Be8 a4 73. Bf7 Nd5 74. Kd1 h3 75. Bh5 g4 76. Bxg4 Ne3+ 77. Ke2 Nxg4 78. Kf1 h2 79. Kg2 a3 80. Kg3 {[#]} h1=Q $1 81. Kxg4 a2 82. Kg5 a1=Q 83. Kg6 Qhg1+ 84. Kf7 Qag7+ 85. Ke8 Qg8#) 62. Kf5 {[%emt 0:00:15]} Ne7+ {[%emt 0:00:20]} (62... Nc3 $142 63. Ba6 a4 64. Bc4 Kc5 65. Bg8 a3 66. Ke5 Ne2 67. Ba2 Nc1 68. Bb1 Kb4 69. Kf5 Kc3 70. Kg6 Kb2 71. Bf5 a2 72. Be4 a1=Q 73. Kh7 Qa4 74. Bf5 Qd4 75. Be6 Nd3 76. Kg8 Qf6 77. Bc4 Ne5 78. g5 hxg5 79. Bd5 Ng6 80. Bf7 Ne7+ 81. Kf8 Nf5 82. Kg8 g6 83. Kf8 g4 84. Kg8 Qg7#) 63. Ke4 {[%emt 0:00:19]} Ng6 {[%emt 0:01:00]} (63... g5 $142 64. Ba4 Nd5) 64. Kf5 {[%emt 0:00:30]} Ne5 {[%emt 0:00:17] ( -> ...g6+)} 65. Ba4 {[%emt 0:00:05]} g6+ {[%emt 0:00:20]} (65... g5 $142 66. Bd1 Nd3 67. Kg6 Nf2 68. Ba4 Nxg4 69. Kf5 Nf2 70. Bc2 Kc5 71. Ke5 Kb4 72. Bh7 a4 73. Kf5 a3 74. Bg8 Nd3 75. Kg4 Nc1 76. Kh5 Nb3 77. Kg6 a2 78. Be6 a1=Q 79. Bh3 Qa6+ 80. Kg7 Qb7+ 81. Kg6 Qc6+ 82. Kh7 Qf6 83. Bd7 Nc5 84. Bc8 Ne4 85. Bh3 g4 86. Bg2 Ng5+ 87. Kg8 Qg6+ 88. Kh8 Qh7#) 66. Kf6 {[%emt 0:00:25]} g5 {[%emt 0:01:26] Black mates.} 67. Kf5 {[%emt 0:00:08]} Kd5 {[%emt 0:00:14]} 68. Bb3+ {[%emt 0:01:12]} Kd4 {[%emt 0:00:30]} 69. Bd1 {[%emt 0:00:03]} Nd3 {[%emt 0:00:59]} 70. Ba4 {[%emt 0:02:41]} Nf2 {[%emt 0:00:26]} 71. Bd7 {[%emt 0:00:17]} Ke3 {[%emt 0:00:27]} 72. Bc6 {[%emt 0:00:34]} Nd3 {[%emt 0:00:37]} 73. Bb5 {[%emt 0:00:52]} Nf4 {[%emt 0:00:23]} 74. Bc6 {[%emt 0:00:07]} Kf2 {[%emt 0:00:26]} 75. Bd7 {[%emt 0:00:18]} Kg3 {[%emt 0:00:46]} 76. Ke4 {[%emt 0:00:19]} Nh3 {[%emt 0:00:47]} 77. Kd4 {[%emt 0:01:00]} Nf2 {[%emt 0:00:05]} 78. Kc4 {[%emt 0:00:24]} Nxg4 {[%emt 0:00:08]} 79. Kb5 {[%emt 0:00:08]} h5 {[%emt 0:00:19][%cal Bh6h5,Bh5h4,Bh4h3,Bh3h2][%mdl 32]} 80. Kxa5 {[%emt 0:00:09]} h4 {[%emt 0:00:06]} 81. Kb4 {[%emt 0:00:46]} h3 {[%emt 0:00:13]} 82. Bc6 {[%emt 0:00:36]} h2 {[%emt 0:00:26]} 83. Kc3 {[%emt 0:00:32]} Ne3 {[%emt 0:00:33]} 84. Bh1 {[%emt 0:00:13]} Kf2 {[%emt 0:00:09]} 85. Kd3 {[%emt 0:00:38]} g4 {[%emt 0:00:19] Weighted Error Value: White=0.52/Black=0.25 (precise)} 0-1

[Event "Frauenbundesliga 2021-22"]
[Site "Germany"]
[Date "2022.05.27"]
[Round "4.1"]
[White "Osmak, Yuliia"]
[Black "Socko, Monika"]
[Result "1/2-1/2"]
[ECO "A28"]
[WhiteElo "2428"]
[BlackElo "2384"]
[Annotator "TA"]
[PlyCount "176"]
[EventDate "2021.11.26"]
[EventType "team-tourn"]
[EventCountry "GER"]
[SourceTitle "playchess.com"]
[Source "ChessBase"]
[SourceQuality "1"]
[WhiteTeam "Bad Koenigshofen"]
[BlackTeam "Hamburger SK"]
[TimeControl "40/5400+30:1800+30"]

{[%evp 9,176,11,11,0,9,-15,36,24,31,24,31,29,41,11,26,18,47,53,45,22,0,4,33,28,26,13,20,16,29,0,0,0,0,0,127,108,149,139,229,104,290,297,273,266,310,310,310,310,310,310,300,293,293,270,272,286,315,316,309,314,326,337,354,301,314,307,311,305,355,393,434,435,394,310,310,310,305,305,304,290,300,300,278,282,261,221,233,221,220,211,210,105,107,60,203,188,191,186,203,137,136,118,117,115,122,115,122,115,116,46,46,46,46,53,81,81,272,272,263,247,166,107,115,73,415,414,268,255,396,396,519,508,729,692,666,627,1156,989,984,441,432,0,928,420,786,820,1445,1391,1177,1131,1235,1269,1157,1134,1322,1294,1647,1405,1070,8,8,8,12,8,8,8,8,8,8]} 1. c4 {[%emt 0:00:03]} e5 {[%emt 0:00:07]} 2. Nc3 {[%emt 0:00:07]} Nf6 {[%emt 0:00:08]} 3. Nf3 {[%emt 0:01:20]} Nc6 {[%emt 0:00:06]} 4. e4 {[%emt 0:10:43]} Bb4 {[%emt 0:00:37]} 5. d3 {[%emt 0:00:32]} d6 {[%emt 0:00:17]} 6. Be2 {[%emt 0:00:55] A28: English Opening: Four Knights Variation.} O-O {[%emt 0:03:11] 6...Bg4 injects fresh life into this line.} 7. Bg5 {[%emt 0:03:25]} Nd4 {[%emt 0:05:27] [#]} (7... h6 $11 8. Bd2 Bg4) 8. Nxd4 $146 {[%emt 0:11:43] White is slightly better.} ({Predecessor:} 8. O-O Bxc3 9. bxc3 Nxf3+ 10. Bxf3 h6 11. Be3 c6 12. d4 Qe7 13. d5 c5 14. Rb1 {½-½ (39) Andreasen,P (2260)-Huenerkopf,H (2305) Brondby 1985}) 8... exd4 {[%emt 0:01:13][%mdl 64] Pin} 9. a3 $1 {[%emt 0:00:13]} Ba5 {[%emt 0:11:47]} 10. b4 {[%emt 0:01:05] Nd5 is the strong threat.} c6 {[%emt 0:06:03] Inhibits Nd5.} 11. Nb1 {[%emt 0:05:08]} Bc7 {[%emt 0:01:14]} 12. Nd2 {[%emt 0:01:00]} d5 {[%emt 0:06:07]} 13. exd5 {[%emt 0:12:41]} cxd5 {[%emt 0:00:08]} 14. c5 {[%emt 0:00:07]} Re8 {[%emt 0:03:34]} 15. O-O {[%emt 0:00:50]} a5 {[%emt 0:00:51]} (15... h6 $5 {[%cal Rh6g5]} 16. Bh4 a5 $11) 16. Bf3 {[%emt 0:05:22]} h6 {[%emt 0:08:03]} 17. Bxf6 {[%emt 0:04:08]} Qxf6 {[%emt 0:00:06]} 18. g3 {[%emt 0:00:19]} Bf5 {[%emt 0:07:35]} 19. Bxd5 {[%emt 0:10:03]} (19. Qb3 {with more complications.} Qg5 20. Qxd5 Bxd3 21. Qxg5 hxg5 22. Rfc1) 19... Bxd3 {[%emt 0:09:59]} 20. Re1 {[%emt 0:02:42]} Rxe1+ {[%emt 0:04:20]} 21. Qxe1 {[%emt 0:00:06]} axb4 {[%emt 0:00:16]} (21... Rb8 $11 {remains equal.}) 22. axb4 $16 {[%emt 0:00:22]} Rxa1 {[%emt 0:03:04]} 23. Qxa1 {[%emt 0:00:04]} Ba6 {[%emt 0:01:58]} (23... b6 $16) 24. Qe1 {[%emt 0:11:21]} (24. Qa4 $18 {is more deadly. Strongly threatening Qe8+.} Qd8 25. Be4) 24... Qe5 {[%emt 0:02:29]} (24... Bb5 $16) 25. Qxe5 $18 {[%emt 0:00:11]} Bxe5 {[%emt 0:00:01][%mdl 4096] Endgame KBB-KBN} 26. Bc4 {[%emt 0:08:18]} b5 {[%emt 0:02:55]} 27. cxb6 {[%emt 0:00:54]} Bb7 {[%emt 0:00:04]} 28. Nb3 {[%emt 0:03:35]} Bf3 {[%emt 0:00:41]} 29. Nc5 {[%emt 0:00:40]} Bd6 {[%emt 0:01:18]} 30. Kf1 {[%emt 0:01:00]} Kf8 {[%emt 0:00:19]} 31. Ke1 {[%emt 0:00:14]} Ke7 {[%emt 0:01:22]} 32. Kd2 {[%emt 0:00:08]} g5 {[%emt 0:00:55]} 33. Kd3 {[%emt 0:00:43]} Be5 {[%emt 0:00:02]} 34. Nb3 {[%emt 0:01:28]} f6 {[%emt 0:04:59]} 35. Nxd4 {[%emt 0:00:18]} Bg2 {[%emt 0:00:02]} 36. Nf5+ {[%emt 0:02:55]} Kd7 {[%emt 0:00:01]} 37. Ne3 {[%emt 0:00:56] Against Bf1+} Bh3 {[%emt 0:00:15]} 38. Bd5 {[%emt 0:00:43]} h5 {[%emt 0:02:13]} 39. Bf3 {[%emt 0:00:51]} Be6 {[%emt 0:02:41]} 40. Bxh5 {[%emt 0:00:07]} f5 {[%emt 0:00:02] Inhibits Bg4.} 41. Bg6 {[%emt 0:09:55]} f4 {[%emt 0:00:54]} 42. Nc2 {[%emt 0:00:10]} Ba2 {[%emt 0:01:49]} 43. Ke4 {[%emt 0:01:35]} Bd6 {[%emt 0:03:24]} 44. Kf5 {[%emt 0:02:07]} fxg3 {[%emt 0:00:04]} 45. fxg3 {[%emt 0:04:06]} ({Don't take} 45. hxg3 $6 Be7 46. Kg4 Kc6 47. Nd4+ Kxb6 $16) 45... Be7 {[%emt 0:00:58]} 46. Kg4 {[%emt 0:03:32]} Kc6 {[%emt 0:08:06]} 47. Bd3 {[%emt 0:04:24] Prevents Bc4.} Kxb6 {[%emt 0:01:25]} 48. b5 {[%emt 0:00:04]} Kc5 {[%emt 0:01:59]} 49. Kf5 {[%emt 0:01:41]} Bd8 {[%emt 0:05:04]} 50. Ke4 {[%emt 0:02:52]} (50. Kg6 $18) 50... Bg8 $16 {[%emt 0:04:29]} 51. Ke5 {[%emt 0:04:44]} (51. Nd4 $16) 51... Bc7+ {[%emt 0:01:07]} (51... Ba5 $1 $14) 52. Kf6 $18 {[%emt 0:00:04]} Bd8+ {[%emt 0:00:02]} 53. Kg6 {[%emt 0:00:40]} Bb3 {[%emt 0:00:13]} 54. Ne1 {[%emt 0:00:16]} Kd4 {[%emt 0:02:34]} 55. Bf5 {[%emt 0:00:33] Threatens to win with Nf3+.} Bd1 {[%emt 0:04:17] Prevents Nf3+.} 56. Nc2+ {[%emt 0:02:50]} Kc5 {[%emt 0:02:04]} 57. Ne3 {[%emt 0:00:12]} Be2 {[%emt 0:01:46]} 58. Bd7 {[%emt 0:00:03]} Bd3+ {[%emt 0:00:33]} 59. Kf7 {[%emt 0:01:15]} (59. Kh6 $16) 59... Kd6 $1 $14 {[%emt 0:01:44]} 60. Bc6 {[%emt 0:00:09]} Bb6 {[%emt 0:02:10]} 61. Ng4 {[%emt 0:00:22]} Bf5 {[%emt 0:00:20]} 62. Nh6 {[%emt 0:00:17]} Bd3 $2 {[%emt 0:00:50]} (62... Be6+ $16 63. Kf6 g4) 63. Kf6 $1 $18 {[%emt 0:00:10]} Bd8+ {[%emt 0:03:03]} 64. Kg7 $1 {[%emt 0:00:44]} Ke6 {[%emt 0:00:07]} 65. Ng4 {[%emt 0:01:35] Prevents Bf6+.} ({White should play} 65. Nf7 $18 Bf6+ 66. Kf8) 65... Be2 $16 {[%emt 0:03:14]} 66. Nf2 {[%emt 0:00:35]} Kd6 $2 {[%emt 0:02:14][%mdl 8192] [#]} (66... Bb6 $16 {is tougher.}) 67. Kg6 $1 $18 {[%emt 0:00:21]} Ke5 {[%emt 0:00:07] [#]} 68. Nh3 $1 {[%emt 0:00:33]} Bd3+ {[%emt 0:02:22]} (68... g4 {keeps fighting.}) 69. Kh5 {[%emt 0:00:17]} Be2+ {[%emt 0:00:44]} 70. g4 {[%emt 0:00:17]} Kf6 {[%emt 0:00:41]} 71. Nxg5 {[%emt 0:00:08]} Bc7 {[%emt 0:00:11]} 72. h3 {[%emt 0:01:18]} Ke5 {[%emt 0:00:17]} 73. h4 {[%emt 0:00:46]} Ba5 {[%emt 0:00:30]} 74. Bd7 {[%emt 0:00:19]} (74. Nf3+ $142 Kd6 75. g5) 74... Kd6 {[%emt 0:00:17]} 75. Bc6 {[%emt 0:00:50]} Ke5 $1 {[%emt 0:00:01]} 76. Nf7+ {[%emt 0:00:33]} (76. Nf3+ $142 Kd6 77. g5) 76... Kf4 {[%emt 0:00:16]} (76... Ke6 $142 77. Ng5+ Ke7) 77. Bd7 {[%emt 0:00:05]} Bc7 {[%emt 0:00:01]} 78. Kg6 {[%emt 0:01:00]} Bd3+ {[%emt 0:00:37]} 79. Kf6 {[%emt 0:00:12]} Bb6 {[%emt 0:00:18]} 80. g5 {[%emt 0:00:44]} Bd4+ {[%emt 0:00:02]} 81. Ke7 {[%emt 0:00:29]} Bg6 {[%emt 0:00:02]} 82. Nh6 {[%emt 0:00:44]} Bf2 {[%emt 0:00:43]} 83. Kf6 {[%emt 0:00:10]} Bd3 {[%emt 0:00:20]} 84. h5 $2 {[%emt 0:00:08]} (84. g6 $18) 84... Bd4+ $11 {[%emt 0:00:47] The position is equal.} 85. Ke6 {[%emt 0:01:12]} Kxg5 {[%emt 0:00:38]} 86. Kd5 {[%emt 0:00:21] aiming for Nf7+.} Kxh6 {[%emt 0:00:25]} 87. Kxd4 {[%emt 0:00:03]} Bxb5 $1 {[%emt 0:00:03]} 88. Bxb5 {[%emt 0:00:02]} Kxh5 {[%emt 0:04:08] Weighted Error Value: White=0.12 (very precise) /Black=0.22 (precise)} 1/2-1/2